Cogmind - Beta 15 @@@ ROGUE MODE // 2025.10.03 @ 17:26:30 Player: Charleston314 Result: Self-destructed Performance ------------- Evolutions (1) 500 Regions Visited (2) 400 Robots Destroyed (23) 115 Value Destroyed (474) 474 Prototype IDs (4) 80 Alien Tech Used (0) 0 Bonus (0) 0 TOTAL SCORE: 1569 Bonus ------- None Cogmind --------- Core Integrity 156/400 Matter 285/300 Energy 99/100 System Corruption 0% Temperature Cool (6) Movement Core (50) Location -9/Materials Parts ------- > --- POWER (2) -------- (None) > --- PROPULSION (3) --- (None) > --- UTILITY (2) ------ Power Shielding > --- WEAPON (2) ------- (None) > --- INVENTORY (5) ---- Aluminum Leg Heat Sink Small Storage Unit Seismic Detector Peak State ------------ > --- POWER ------------ Light Ion Engine Light Ion Engine > --- PROPULSION ------- Wheel Wheel Wheel > --- UTILITY ---------- Small Storage Unit Seismic Detector > --- WEAPON ----------- EM Shotgun EM Shotgun > --- INVENTORY -------- Light Ion Engine Heavy Ion Engine High-capacity Battery Improved Terrain Scanner Power Shielding Shield Generator EM Pulse Gun Welding Torch [Rating: 12] Favorites ----------- Power Light Ion Engine Engine Light Ion Engine Propulsion Wheel Wheel Wheel Utility Seismic Detector Device Seismic Detector Storage Small Storage Unit Protection Power Shielding Weapon EM Pulse Gun Energy Gun EM Pulse Gun Ballistic Gun Light Assault Rifle Special Weapon Mining Laser Build | -11 -10 -9 ------- Run | Yrd Mat Mat Slots Evolved 2 | . . 2 Power 1 | . . 1 Propulsion 1 | . . 1 Utility . | . . . Weapon . | . . . Parts Attached 21 | 8 2 11 Power 3 | 1 . 2 Engine 3 | 1 . 2 Core . | . . . Reactor . | . . . Propulsion 5 | 2 . 3 Treads . | . . . Leg . | . . . Wheel 5 | 2 . 3 Hover . | . . . Flight . | . . . Utility 6 | 2 1 3 Device 3 | 2 . 1 Storage 2 | . 1 1 Processor . | . . . Hackware . | . . . Protection 1 | . . 1 Artifact . | . . . Weapon 7 | 3 1 3 Energy Gun 4 | 1 . 3 Energy Cannon . | . . . Ballistic Gun 1 | 1 . . Ballistic Cannon . | . . . Launcher . | . . . Special Weapon 2 | 1 1 . Impact Weapon . | . . . Slashing Weapon . | . . . Piercing Weapon . | . . . Special Melee Weapon . | . . . Unidentified Prototypes . | . . . Parts Lost 12 | . . 12 Power 3 | . . 3 Propulsion 5 | . . 5 Utility 1 | . . 1 Weapon 3 | . . 3 Highest Loss Streak 9 | . . 9 To Critical Strikes . | . . . Average Backups 5 | 4 5 6 Power 1 | 1 2 . Propulsion 1 | 1 1 . Utility . | . 1 3 Weapon . | 1 . . Tool/Special . | . . . Unused Backups 7 | 3 1 3 Power 1 | . . 1 Propulsion 4 | 2 1 1 Utility 1 | . . 1 Weapon 1 | 1 . . Tool/Special . | . . . Average Slot Usage (%) 93 | . 100 90 Engine 15 | . 14 16 Wheel 29 | . 28 30 Device 13 | . 24 7 Storage 8 | . 3 10 Protection 2 | . . 3 Energy Gun 17 | . 14 19 Ballistic Gun 1 | . 2 1 Special Weapon 3 | . 11 . Peak Build Rating 12 | 9 9 12 Average Rating 8 | 8 8 10 On Entrance 5 | . 9 8 Naked Turns . | . . . Heaviest Build 18 | 8 12 18 Greatest Support 30 | 20 20 30 Greatest Overweight (x) 1 | . . 1 Average Overweight (x) . | . . . Largest Inventory Capacity 8 | 5 8 8 Average Capacity 5 | 5 5 7 Most Carried 8 | 5 8 8 Average Carried 5 | 4 5 6 Final Capacity 8 | 5 8 5 Final Carried 8 | 5 8 4 Class Distribution -------------------- 100% | Mutant Dominant Class ---------------- Mutant | -10/Materials Mutant | -9/Materials Resources | -11 -10 -9 ----------- Run | Yrd Mat Mat Matter Collected 408 | 289 . 119 Remotely . | . . . Salvage Created 826 | 157 . 669 Parts 45 | 14 . 31 Haulers Intercepted . | . . . Recyclers Shooed 2 | . . 2 Parts Field Recycled . | . . . Retrieved Matter . | . . . Parts Self-Destructed . | . . . Prevented . | . . . Kills | -11 -10 -9 ------- Run | Yrd Mat Mat Combat Hostiles Destroyed 12 | 1 . 11 Guns 9 | . . 9 AOE 3 | 1 . 2 Classes Destroyed 9 | 3 . 6 Worker 2 | 1 . 1 Builder 2 | . . 2 Tunneler 4 | 4 . . Recycler 1 | . . 1 Watcher 2 | . . 2 Swarmer 2 | . . 2 Grunt 8 | 1 . 7 Brawler 1 | . . 1 Sentry 1 | . . 1 Best Kill Streak 5 | 5 . 5 Combat Bots Only 3 | 1 . 3 Max Kills in Single Turn 1 | 1 . 1 Gunslinging . | . . . Exploded 1 | 1 . 1 Melee . | . . . Uniques/NPCs Destroyed . | . . . Combat | -11 -10 -9 -------- Run | Yrd Mat Mat Hostile Shots Fired 92 | 3 . 89 Missed 34 | 1 . 33 Hits 58 | 2 . 56 Melee 5 | . . 5 Projectile 53 | 2 . 51 Critical Strikes 3 | . . 3 Damage Taken 793 | 30 . 763 Core 255 | 11 . 244 Absorbed by Shields 54 | . . 54 Redirected to Shielding 7 | . . 7 Core Remaining (%) 95 | 95 95 . Volleys Fired 229 | 181 9 39 Largest 2 | 2 1 2 Hottest 100 | 100 40 90 Shots Fired 270 | 190 9 71 Gun 105 | 27 7 71 Cannon . | . . . Launcher . | . . . Special 165 | 163 2 . Kinetic 9 | 9 . . Thermal 165 | 163 2 . Explosive . | . . . Electromagnetic 96 | 18 7 71 Robot Hit Streak 8 | 5 1 8 Robot Miss Streak 6 | 4 6 3 Penetration Max . | . . . Secondary Targets 1 | . . 1 Max Gunslinging Chain 1 | . . 1 Shots Hit Robots 70 | 14 1 55 Core Hits 40 | 8 . 32 Critical Kills . | . . . Critical Parts Destroyed . | . . . Critical Strikes . | . . . Melee Attacks . | . . . Impact . | . . . Slashing . | . . . Piercing . | . . . Sneak Attacks . | . . . Combat Hostiles . | . . . Follow-up Attacks . | . . . Damage Inflicted 1425 | 251 60 1114 Guns 1065 | 165 22 878 Cannons . | . . . Explosions 360 | 86 38 236 Melee . | . . . Ramming . | . . . Kinetic 39 | 39 . . Thermal 360 | 86 38 236 Explosive . | . . . Electromagnetic 1026 | 126 22 878 Impact . | . . . Slashing . | . . . Piercing . | . . . Highest Corruption . | . . . Average Corruption . | . . . Corruption Purged . | . . . Corruption Blocked . | . . . Overload Shots . | . . . Overflow Damage 41 | . 8 33 Projectiles . | . . . Explosions 41 | . 8 33 Melee . | . . . Knockbacks . | . . . Impact . | . . . Kinetic . | . . . Secondary . | . . . Self-Inflicted Damage 168 | 8 . 160 Shots 5 | 1 . 4 Rammed . | . . . Targets Rammed . | . . . Kicked . | . . . Crushed . | . . . Highest Temperature 300 | 300 . 264 Average Temperature 88 | 87 . 94 Received Heat Transfer 156 | 12 . 144 Effects 3 | 2 . 1 Energy Bleed 2 | 1 . 1 Interference 1 | 1 . . Siege Activations . | . . . Martial Activations . | . . . Shielding Activations . | . . . Robots Disrupted . | . . . Combat Hostiles . | . . . Robots Corrupted . | . . . Combat Hostiles . | . . . Parts Fried 3 | . . 3 Impact Corruptions . | . . . Robots Melted . | . . . Combat Hostiles . | . . . Parts Melted . | . . . Heat Transferred 450 | 100 50 300 Parts Sabotaged . | . . . Parts Stolen . | . . . Parts Stripped . | . . . Power Chain Reactions 6 | 1 1 4 Alert | -11 -10 -9 ------- Run | Yrd Mat Mat Maximum Alert Level 1 | . . 1 Low Security (%) 98 | 100 100 92 Level 1 1 | . . 7 Level 2 . | . . . Level 3 . | . . . Level 4 . | . . . Level 5 . | . . . High Security . | . . . Max Security . | . . . Peak Influence 227 | 25 6 227 Initial . | . . . Average 18 | . . 82 Influence Increases 441 | 45 9 387 Destroy 0b10 Robot/C 240 | 20 . 220 Destroy 0b10 Robot/NC 55 | 25 . 30 Destroy Leader 54 | . . 54 Successful Hack 16 | . 6 10 Disable Machine 15 | . . 15 Destroy Structure 31 | . 3 28 Lose Combat Pursuer 30 | . . 30 Influence Decreases 294 | 45 9 240 Time Decay 174 | 45 9 120 Lost Part 120 | . . 120 Squads Dispatched 3 | . 1 2 Investigation 3 | . 1 2 Extermination . | . . . Reinforcement . | . . . Assault . | . . . Garrison . | . . . Intercept . | . . . Searches Triggered . | . . . Construction Impeded . | . . . Haulers Reinforced . | . . . Active Scanning Responses . | . . . Cargo Convoy Interrupts . | . . . Stealth | -11 -10 -9 --------- Run | Yrd Mat Mat Distress Signals 1 | . . 1 Communications Jammed . | . . . Distress Signals . | . . . Times Spotted 22 | 1 2 19 Peak Tracking Total 7 | 1 1 7 Tactical Retreats 2 | . . 2 Traps | -11 -10 -9 ------- Run | Yrd Mat Mat Traps Triggered 1 | . 1 . Indirectly . | . . . Trap Hack Attempts . | . . . Triggered . | . . . Disarmed . | . . . Reprogrammed . | . . . Reused . | . . . Traps Extracted . | . . . Installed . | . . . Triggered . | . . . Machines | -11 -10 -9 ---------- Run | Yrd Mat Mat Machines Disabled 1 | . . 1 Max in Single Turn 1 | . . 1 Machines Repaired . | . . . Machines Dismantled . | . . . Machines Sabotaged . | . . . Overloaded Fab Kills . | . . . Hacking | -11 -10 -9 --------- Run | Yrd Mat Mat Machines Accessed 5 | . 2 3 Terminals 4 | . 2 2 Fabricators . | . . . Repair Stations . | . . . Recycling Units 1 | . . 1 Scanalyzers . | . . . Garrison Access . | . . . Total Hacks 19 | . 8 11 Successful 13 | . 5 8 Failed 6 | . 3 3 Catastrophic 1 | . 1 . Database Lockouts . | . . . Manual . | . . . Terminals 15 | . 8 7 Fabricators . | . . . Repair Stations . | . . . Recycling Units 4 | . . 4 Scanalyzers . | . . . Garrison Access . | . . . Terminal Hacks 10 | . 5 5 Record 3 | . 3 . Prototype ID Bank 2 | . . 2 Locate Traps 1 | . 1 . Dispatch Records 1 | . 1 . Maintenance Status 1 | . . 1 Zone Layout 2 | . . 2 Fabricator Hacks . | . . . Repair Station Hacks . | . . . Recycling Unit Hacks 3 | . . 3 Process 1 | . . 1 Retrieve Matter 2 | . . 2 Scanalyzer . | . . . Garrison Access Hacks . | . . . Unauthorized Hacks . | . . . Terminals . | . . . Fabricators . | . . . Repair Stations . | . . . Recycling Units . | . . . Scanalyzers . | . . . Garrison Access . | . . . Data Cores Recovered . | . . . Used . | . . . Hacking Detections 5 | . 2 3 Full Trace Events 2 | . . 2 Feedback Events . | . . . Feedback Blocked . | . . . Robot Schematics Acquired . | . . . Robots Built . | . . . Authchips . | . . . Time . | . . . Total Robot Build Rating . | . . . Part Schematics Acquired . | . . . Parts Built . | . . . Authchips . | . . . Time . | . . . Total Part Build Rating . | . . . Parts Repaired . | . . . Time . | . . . Parts Recycled . | . . . Recycled Matter 17 | . . 17 Retrieved Matter 17 | . . 17 Retrieved Components . | . . . Parts Scanalyzed . | . . . Part Schematics Acquired . | . . . Parts Damaged . | . . . Bothacking | -11 -10 -9 ------------ Run | Yrd Mat Mat Used RIF Installer . | . . . Robots Hacked . | . . . Non-combat . | . . . Combat . | . . . Robot Hacks Applied . | . . . Relay Couplers Released . | . . . Fabnet Peak Effective % . | . . . Robots Rewired . | . . . Allies Hacked . | . . . Hacks Repelled . | . . . Allies | -11 -10 -9 -------- Run | Yrd Mat Mat Total Allies . | . . . Largest Group . | . . . Highest-Rated Group . | . . . Highest-Rated Ally . | . . . Total Orders . | . . . Ally Attacks . | . . . Total Damage . | . . . Kills . | . . . Allies Corrupted . | . . . Allies Melted . | . . . Intel | -11 -10 -9 ------- Run | Yrd Mat Mat Active Infowar (turns) 841 | 503 121 217 Terrain 580 | 503 77 . Seismic 616 | 278 121 217 Robot Analysis Total . | . . . Derelict Logs Recovered . | . . . Drone Launches . | . . . Drone Recoveries . | . . . Exploration | -11 -10 -9 ------------- Run | Yrd Mat Mat Turns Passed 1640 | 1114 169 357 Spaces Moved 820 | 400 176 244 Core 20 | 16 . 4 Treads . | . . . Legs . | . . . Wheels 800 | 384 176 240 Hover . | . . . Flight . | . . . Fastest Speed 50 | 50 80 50 Average Speed 79 | 78 80 80 Slowest Speed 100 | 80 80 100 Overloaded Moves . | . . . Propulsion Burnouts . | . . . Robots Hopped . | . . . Potential Cave-ins 7 | 7 . . Cave-ins Triggered . | . . . Exploration Rate (%) 22 | 13 30 24 Regions Visited 2 Branch Regions . Pre-discovered Areas . | . . . Known Exits Taken . | . . . Unknown Exits Taken 2 | 1 1 . Scrap Searched . | . . . Spaces Dug 57 | 57 . . Terrain Destroyed 111 | 82 3 26 Melee . | . . . Projectile 82 | 82 . . AOE 29 | . 3 26 Terrain Rammed . | . . . Walls Destroyed . | . . . Machines Disabled . | . . . Actions | -11 -10 -9 --------- Run | Yrd Mat Mat Total 1212 | 684 194 334 Wait 101 | 77 . 24 Move 818 | 399 175 244 Hop . | . . . Pick Up 28 | 15 5 8 Fast Attach 1 | . . 1 Attach 14 | 7 . 7 Detach . | . . . Swap 11 | 2 3 6 Drop 10 | 3 2 5 Fire 229 | 181 9 39 Melee . | . . . Ram . | . . . Kick . | . . . Crush . | . . . Escape Stasis . | . . . Rewire . | . . . Trap . | . . . Miscellaneous . | . . . Route ------- -11/Scrapyard -10/Materials (discovered 2 exits: *Mat / [*Min]) -9/Materials History --------- Turn | Location | Event 2 | -11/Scrapyard | Met Revision 17 84 | -11/Scrapyard | Discovered new exit (range 8) 1115 | -11/Scrapyard | Entered Materials 1133 | -10/Materials | Discovered new exit (range 16) 1160 | -10/Materials | Build established: Mutant 1265 | -10/Materials | Discovered new exit (range 16) 1284 | -10/Materials | Entered another Materials area 1284 | -9/Materials | Evolved 2 slots: Power x1, Propulsion x1 1641 | -9/Materials | Core integrity fell below 50% 1641 | -9/Materials | Self-destructed Last Messages --------------- K-01 Serf collects debris. Wheel destroyed. U-05 Engineer lays Concrete. K-01 Serf collects debris. S-10 Pest destroyed. U-05 Engineer lays Concrete. U-05 Engineer builds a Wall. Wheel destroyed. U-05 Engineer lays Concrete. Wheel destroyed. K-01 Serf collects debris. Hvy. EM Pulse Gun destroyed. U-05 Engineer lays Concrete. Lgt. Ion Engine destroyed. U-05 Engineer lays Concrete. K-01 Serf collects debris. U-05 Engineer lays Concrete. Shield Generator destroyed. Wheel destroyed. Hcp. Battery severed. Map ----- +----------------------------------------------------+ | ?????????????????????????????????????????????????? | | ?????????????????????????????????????????????????? | | ?????????????????????????????????????????????????? | | ?????????????????????????????????????????????????? | | ?????????????????????????????????????????????????? | | ?????????????????????????????????????????????????? | | ?????????????????????????????????????????????????? | | ?????????????????????????????????????????????????? | | ?????????????????????????????????????????????????? | | ?????????####### #?#" """ ## ######?????????? | | ???????????????# #?#" """ T###??????????????? | | ???????????????# #?#T """ ##???####?????????? | | ???????????????# #?#" #????#"""?????????? | | ???????????????# #?#" ##???#" ?????????? | | ???????????????# #?#" """ #####" ?????????? | | ???????????????# #?## """ ?????????? | | ???????????????# #### """ ?????????? | | ???????????????# """ ?????????? | | ???????????????# ##### ?????????? | | ???????????????# #???####?????????? | | ???????????????#########T## #??????#?????????? | | ????????????##########?#### #??????#?????????? | | ????????????# #????# #??????#?????????? | | ????????????#""" ###### #??????#?????????? | | ????????????#""" ## T # #??????#?????????? | | ????????????#""" ## @# #??????#?????????? | | ????????????# # l!# #??????#?????????? | | ????????????#""" ## # #############+#??? | | ?##########?#""" % ## # ?? | | ?# #?#""" ##gss# ?? | | ?# """ #?# ##g* # ?? | | ?# """ #######+######u## #############????????? | | ?# """ # *!% =% %% #????????????????????? | | ?# # % / =% #????????????????????? | | ?# # = = #????????????????????? | | ?# # %%###############????????????????????? | | ?# "T" # =# ] #????????????????????????? | | ?# # |# #????????????????????????? | | ?####+##### # #????????????????????????? | | ???# #????????????????????????? | | ???# = % #????????????????????????? | | ???# [ """ #????????????????????????? | | ???# #### """ #????????????????????????? | | ???# #??# """ #????????????????????????? | | ???# #??# # #+#????????????????????????? | | ?### #??# % # ### #????????????????????????? | | ##T######## = #????????????????????????? | | #????????????????????????? | | #????????????????????????? | | ** ##############???????????? | +----------------------------------------------------+ Best States ------------- Heat Dissipation 28 Energy Generation 15 Energy Capacity 400 Matter Stores 300 Matter Capacity 300 Sight Range 16 Terrain Scan Range 16 Terrain Scan Density 10 Power Shielding 33 Evasion (%) 50 Item Schematics ----------------- None Robot Schematics ------------------ None Fabricated ------------ Nothing Repaired ---------- Nothing Alien Tech Used ----------------- None Achievements -------------- None Challenges ------------ None Game ------ Seed SurveybotInterceptRefractor Manual? 0 Play Time 00:37:29 Cumulative 3.9 hours Start 2025.10.03 @ 16:39:17 End 2025.10.03 @ 17:26:30 Sessions 1 Manual Loads 0 Difficulty Rogue Special Mode None Game No. 3 Rogue 3 Adventurer 0 Explorer 0 Win Type - Total 0 Types 0/0/0/0/0/0/0/0/0/0 Lore% 0 Gallery% 6 Achievement% 5 Wizard Run 0 Options --------- Layout 1 ASCII 0 Keyboard 0 Movement Mouse Keybinds 0 Fullscreen 1 Font 24/Smallcaps Map View 50x35 Zoom Use 0% Tactical HUD 0 Map Filters NONE Filters NONE Steam 0 RUN: bf8087b8-29df-4483-af96-cfb457176f7c